[Event "French Top 16-A 2024"]
[Site "Chartres"]
[Date "2024.06.03"]
[Round "5.10"]
[White "Fedorchuk, Sergey A."]
[Black "Bonte, Andrei-Mihai"]
[Result "1-0"]
[ECO "B18"]
[WhiteElo "2546"]
[BlackElo "2270"]
[Annotator "TA"]
[PlyCount "99"]
[EventDate "2024.06.01"]
[EventType "team-tourn"]
[EventCountry "FRA"]
[SourceTitle "playchess.com"]
[Source "ChessBase"]
[SourceQuality "1"]
[TimeControl "40/5400+30:1800+30"]

{[%evp 13,99,23,33,27,46,45,132,42,50,33,54,32,107,104,104,92,120,121,139,142,203,166,173,170,174,141,173,165,264,238,273,237,270,253,279,264,258,286,291,304,294,297,308,245,320,331,329,324,317,279,294,281,275,266,277,261,262,240,268,252,295,313,327,308,405,393,388,333,341,301,359,342,488,469,499,477,614,591,929,875,1169,1148,1879,1759,29970,29967,29987,29985]} 1. e4 {[%emt 0:00:04]} c6 {[%emt 0:01:01]} 2. d4 {[%emt 0:03:54]} d5 {[%emt 0:00:07]} 3. Nd2 {[%emt 0:01:39]} dxe4 {[%emt 0:01:01]} 4. Nxe4 {[%emt 0:00:09]} Bf5 {[%emt 0:00:29]} 5. Ng3 {[%emt 0:02:43]} Bg6 {[%emt 0:00:07]} 6. Nh3 {[%emt 0:00:09]} e6 {[%emt 0:13:34]} 7. Nf4 {[%emt 0:01:44]} Qh4 {[%emt 0:09:49]} 8. Be3 {[%emt 0:08:47][%cal Bc1e3,Be3f4,Bf4d6][%mdl 32]} Bd6 {[%emt 0:08:54]} 9. Qd2 {[%emt 0:06:56][%cal Of4e6]} Ne7 {[%emt 0:06:31] [#]} ({Better is} 9... Qe7 $14) 10. Be2 {[%emt 0:30:31]} (10. Nxe6 $1 $16 fxe6 11. Bg5 Bxg3 (11... Qg4 $2 12. Be2 $18) 12. Bxh4 Bxh4 13. Bc4) 10... Bxf4 $14 {[%emt 0:08:36]} 11. Bxf4 {[%emt 0:00:05]} h6 {[%emt 0:00:08] Dodges Bg5} 12. Bd6 {[%emt 0:06:07]} Nc8 {[%emt 0:08:42]} (12... a5 $14) 13. Ba3 $16 {[%emt 0:00:59] White is more active. Black is on the road to losing.} Nd7 {[%emt 0:03:52]} 14. O-O {[%emt 0:02:13]} Ncb6 {[%emt 0:00:50]} 15. c4 {[%emt 0:01:03]} O-O-O {[%emt 0:01:56]} 16. Rfd1 {[%emt 0:00:21]} Ne5 {[%emt 0:04:48]} (16... Rhe8 $16 17. Qa5 Qg5 18. Qxa7 Kc7) 17. Qc3 {[%emt 0:05:39]} Ng4 {[%emt 0:01:27]} 18. h3 {[%emt 0:05:14]} Nf6 {[%emt 0:00:13]} 19. b3 {[%emt 0:04:07]} Ne4 {[%emt 0:03:43] [#]} 20. Nxe4 {[%emt 0:00:09]} Qxe4 {[%emt 0:00:18]} (20... Bxe4 $142 21. Qa5 Qg5 22. Qxg5 (22. Qxa7 $2 Qxg2#) 22... hxg5) 21. Bf3 $18 {[%emt 0:00:25]} Qc2 {[%emt 0:01:22]} 22. Qe3 {[%emt 0:01:33]} Rhe8 {[%emt 0:01:23]} 23. Bc5 {[%emt 0:03:05] Threatens to win with a4.} Kb8 {[%emt 0:13:26]} 24. a4 {[%emt 0:00:46][%cal Ba2a4,Ba4a5][%mdl 32] And now a5 would win.} Nd7 {[%emt 0:02:11]} 25. Bd6+ {[%emt 0:02:24] A strong pair of Bishops.} Ka8 {[%emt 0:00:01]} 26. a5 {[%emt 0:02:30]} a6 {[%emt 0:01:06]} 27. Rac1 {[%emt 0:02:33]} Qb2 {[%emt 0:01:58]} 28. Re1 {[%emt 0:05:27] Re2 would now be deadly.} Nb8 {[%emt 0:02:18]} 29. Re2 {[%emt 0:03:04]} Qxc1+ {[%emt 0:00:13]} 30. Qxc1 {[%emt 0:00:01]} Rxd6 {[%emt 0:00:07] [#]} 31. d5 {[%emt 0:00:21][%mdl 512]} cxd5 {[%emt 0:02:48]} 32. cxd5 {[%emt 0:00:06]} Red8 {[%emt 0:00:47]} 33. Qc7 {[%emt 0:01:16] dxe6 would kill now.} R6d7 {[%emt 0:01:12]} 34. Qc3 {[%emt 0:00:42]} exd5 {[%emt 0:00:19]} 35. Qxg7 {[%emt 0:00:06]} Nc6 {[%emt 0:01:17]} 36. Rb2 {[%emt 0:00:15]} (36. Qxh6 Nd4 37. Qe3 Nxe2+ 38. Qxe2 Be4 39. Bxe4 Re7 $11) 36... Nxa5 {[%emt 0:01:19]} 37. Qxh6 {[%emt 0:00:04]} Nc6 {[%emt 0:00:17]} 38. h4 {[%emt 0:00:48][%cal Bh3h4,Bh4h5][%mdl 32]} Ne5 {[%emt 0:00:33]} 39. Be2 {[%emt 0:00:21]} d4 {[%emt 0:00:33]} 40. Qf4 {[%emt 0:00:40]} Nc6 {[%emt 0:00:29]} 41. h5 {[%emt 0:30:34]} Bh7 {[%emt 0:30:41]} 42. Bg4 {[%emt 0:00:32]} Rd6 {[%emt 0:00:00]} (42... Re7 {is a better defense.} 43. Re2 Rxe2 44. Bxe2 d3) 43. Qxf7 {[%emt 0:00:00]} Bg8 {[%emt 0:00:00]} 44. Qc7 {[%emt 0:00:00] aiming for Bc8.} Bd5 {[%emt 0:00:00]} 45. Rd2 {[%emt 0:00:00]} Be4 {[%emt 0:00:00]} 46. f3 {[%emt 0:00:00]} Ne5 {[%emt 0:00:00]} 47. Bc8 {[%emt 0:00:00]} Nxf3+ {[%emt 0:00:00]} 48. gxf3 {[%emt 0:00:00]} Bxf3 {[%emt 0:00:00]} 49. Rf2 {[%emt 0:00:00]} Bd5 {[%emt 0:00:03] [#]} 50. Rf7 $1 {[%emt 0:00:00] Weighted Error Value: White=0.14 (very precise) /Black=0.32.  Mistake:       	White=1     	Black=5      Inaccurate:     	---       	Black=5      OK:         	White=18    	Black=11     Best:        	---       	Black=4} 1-0

[Event "French Top 16-A 2024"]
[Site "Chartres"]
[Date "2024.06.03"]
[Round "5.10"]
[White "Ramirez Garcia, Jorge Alberto"]
[Black "Demuth, Adrien"]
[Result "0-1"]
[ECO "A33"]
[WhiteElo "2266"]
[BlackElo "2505"]
[Annotator "RC"]
[PlyCount "60"]
[EventDate "2024.06.01"]
[EventType "team-tourn"]
[EventCountry "FRA"]
[SourceTitle "playchess.com"]
[Source "ChessBase"]
[SourceQuality "1"]
[TimeControl "40/5400+30:1800+30"]

1. d4 {[%emt 0:00:03]} Nf6 {[%emt 0:00:36]} 2. Nf3 {[%emt 0:00:15]} c5 {[%emt 0:02:24]} 3. c4 {[%emt 0:02:13]} cxd4 {[%emt 0:00:25]} 4. Nxd4 {[%emt 0:00:06]} Nc6 {[%emt 0:00:04]} 5. Nc3 {[%emt 0:00:43]} e6 {[%emt 0:00:06]} 6. g3 {[%emt 0:07:12]} Qb6 {[%emt 0:00:29]} 7. Nc2 {[%emt 0:06:39]} d5 {[%emt 0:03:45]} 8. cxd5 {[%emt 0:07:37]} exd5 {[%emt 0:01:58]} 9. Nxd5 {[%emt 0:11:58]} Nxd5 {[%emt 0:11:55]} 10. Qxd5 {[%emt 0:00:06]} Be6 {[%emt 0:00:37]} 11. Qe4 {[%emt 0:00:44]} Bc5 {[%emt 0:03:39]} 12. Bh3 {[%emt 0:23:55]} Bxf2+ {[%emt 0:10:18]} 13. Kf1 {[%emt 0:01:05]} O-O {[%emt 0:00:08]} 14. Bxe6 {[%emt 0:00:25]} fxe6 {[%emt 0:00:16]} 15. Kg2 {[%emt 0:00:14]} Bc5 {[%emt 0:06:43]} 16. b4 {[%emt 0:15:03]} Be7 {[%emt 0:21:44]} 17. Be3 {[%emt 0:00:51]} Qb5 {[%emt 0:01:55]} 18. Qxe6+ {[%emt 0:07:00]} Kh8 {[%emt 0:00:11]} 19. Nd4 {[%emt 0:00:18]} Nxd4 {[%emt 0:03:28]} 20. Bxd4 {[%emt 0:02:16]} Bf6 {[%emt 0:09:07]} 21. Bxf6 {[%emt 0:07:53]} Rxf6 {[%emt 0:00:23]} 22. Qe4 {[%emt 0:02:24]} Re8 {[%emt 0:02:01]} 23. a4 {[%emt 0:00:03]} Qh5 {[%emt 0:01:31]} 24. Qd3 {[%emt 0:02:16]} Rxe2+ {[%emt 0:07:41]} 25. Kg1 {[%emt 0:00:02]} Qe8 {[%emt 0:00:15]} 26. Rf1 {[%emt 0:01:30]} Rxf1+ {[%emt 0:02:21]} 27. Kxf1 {[%emt 0:00:01]} Ra2 {[%emt 0:00:05]} 28. Qf3 {[%emt 0:01:00]} Qc8 {[%emt 0:01:00]} 29. Qf4 {[%emt 0:00:34]} Qh3+ {[%emt 0:00:18]} 30. Ke1 {[%emt 0:00:14]} Qe6+ {[%emt 0:00:02]} 0-1

[Event "French Top 16-A 2024"]
[Site "Chartres"]
[Date "2024.06.03"]
[Round "5.11"]
[White "Parligras, Mircea-Emilian"]
[Black "Solakian-Van Eyll, Jerome"]
[Result "1-0"]
[ECO "D27"]
[WhiteElo "2561"]
[BlackElo "2247"]
[Annotator "RC"]
[PlyCount "61"]
[EventDate "2024.06.01"]
[EventType "team-tourn"]
[EventCountry "FRA"]
[SourceTitle "playchess.com"]
[Source "ChessBase"]
[SourceQuality "1"]
[TimeControl "40/5400+30:1800+30"]

1. d4 {[%emt 0:00:05]} d5 {[%emt 0:00:05]} 2. c4 {[%emt 0:00:11]} dxc4 {[%emt 0:00:13]} 3. Nf3 {[%emt 0:00:13]} Nf6 {[%emt 0:01:39]} 4. e3 {[%emt 0:00:07]} e6 {[%emt 0:01:40]} 5. Bxc4 {[%emt 0:00:10]} c5 {[%emt 0:00:08]} 6. O-O {[%emt 0:00:13]} Nc6 {[%emt 0:00:18]} 7. Nc3 {[%emt 0:00:49]} a6 {[%emt 0:02:06]} 8. dxc5 {[%emt 0:01:10]} Qxd1 {[%emt 0:00:12]} 9. Rxd1 {[%emt 0:00:06]} Bxc5 {[%emt 0:00:05]} 10. Nd2 {[%emt 0:01:02]} O-O {[%emt 0:05:37]} 11. Nb3 {[%emt 0:00:24]} Bb4 {[%emt 0:02:40]} 12. Bd2 {[%emt 0:18:45]} Rd8 {[%emt 0:24:43]} 13. a3 {[%emt 0:20:10]} Be7 {[%emt 0:03:59]} 14. e4 {[%emt 0:04:33]} b5 {[%emt 0:20:47]} 15. Be2 {[%emt 0:00:15]} b4 {[%emt 0:12:26]} 16. axb4 {[%emt 0:02:08]} Bxb4 {[%emt 0:03:16]} 17. Be3 {[%emt 0:12:31]} Bb7 {[%emt 0:11:16]} 18. Nc5 {[%emt 0:02:32]} Bxc5 {[%emt 0:00:04]} 19. Bxc5 {[%emt 0:00:04]} Nd7 {[%emt 0:03:21]} 20. Be3 {[%emt 0:06:05]} Nb4 {[%emt 0:00:05]} 21. Rd2 {[%emt 0:15:06]} Ne5 {[%emt 0:01:19]} 22. Rad1 {[%emt 0:00:13]} Rxd2 {[%emt 0:00:11]} 23. Rxd2 {[%emt 0:00:11]} a5 {[%emt 0:00:57]} 24. Bb6 {[%emt 0:04:23]} Ba6 {[%emt 0:01:23]} 25. Bxa6 {[%emt 0:02:45]} Nxa6 {[%emt 0:00:07]} 26. Rd4 {[%emt 0:02:41]} Nb4 {[%emt 0:01:34]} 27. Kf1 {[%emt 0:01:27]} Nec6 {[%emt 0:00:57]} 28. Rd6 {[%emt 0:01:34]} Kf8 {[%emt 0:00:51]} 29. Bc5 {[%emt 0:00:48]} Ke8 {[%emt 0:00:07]} 30. Nb5 {[%emt 0:00:14]} Rc8 {[%emt 0:00:22]} 31. Rd2 {[%emt 0:00:40]} 1-0

[Event "French Top 16-A 2024"]
[Site "Chartres"]
[Date "2024.06.03"]
[Round "5.11"]
[White "Willems, Niels"]
[Black "Grigoryan, Karen H."]
[Result "1/2-1/2"]
[ECO "C11"]
[WhiteElo "2329"]
[BlackElo "2583"]
[Annotator "TA"]
[PlyCount "35"]
[EventDate "2024.06.01"]
[EventType "team-tourn"]
[EventCountry "FRA"]
[SourceTitle "playchess.com"]
[Source "ChessBase"]
[SourceQuality "1"]
[TimeControl "40/5400+30:1800+30"]

{[%evp 14,35,28,11,23,14,12,3,6,6,11,13,6,0,4,0,12,13,32,16,36,29,69,13]} 1. d4 {[%emt 0:01:48]} Nf6 {[%emt 0:00:23]} 2. Nc3 {[%emt 0:00:15]} e6 {[%emt 0:01:43]} 3. e4 {[%emt 0:02:12][%cal Be2e4,Be4e5][%mdl 32]} d5 {[%emt 0:01:24]} 4. e5 {[%emt 0:00:18]} Nfd7 {[%emt 0:00:06]} 5. f4 {[%emt 0:00:08]} c5 {[%emt 0:00:07]} 6. Nf3 {[%emt 0:00:10]} Nc6 {[%emt 0:00:18]} 7. Be3 {[%emt 0:00:14]} a6 {[%emt 0:00:29]} 8. a3 {[%emt 0:00:39]} b5 {[%emt 0:00:28]} 9. dxc5 {[%emt 0:00:14]} Bxc5 {[%emt 0:01:56]} 10. Bxc5 {[%emt 0:00:08]} Nxc5 {[%emt 0:00:04] The position is equal.} 11. b4 {[%emt 1:29:54]} Nd7 {[%emt 0:00:57]} 12. Bd3 {[%emt 0:00:00]} Qb6 {[%emt 0:02:25]} 13. Qd2 {[%emt 0:00:00]} O-O {[%emt 0:01:54]} 14. Qf2 {[%emt 0:00:00]} Qxf2+ {[%emt 0:04:15]} 15. Kxf2 {[%emt 0:00:00]} f6 {[%emt 0:00:04]} 16. exf6 {[%emt 0:00:00]} Rxf6 {[%emt 0:00:12]} 17. Rhe1 {[%emt 0:00:00]} Nb6 {[%emt 0:29:06]} 18. Ke3 {[%emt 0:00:00] Weighted Error Value: White=0.03 (flawless) /Black=0.13 (very precise) .  Mistake:       	White=1     	---        Inaccurate:     	---       	Black=1      OK:         	White=6     	Black=3} (18. g3 $14) 1/2-1/2

[Event "French Top 16-A 2024"]
[Site "Chartres"]
[Date "2024.06.03"]
[Round "5.12"]
[White "Pichot, Alan"]
[Black "Warnier, Yanis"]
[Result "1-0"]
[ECO "B12"]
[WhiteElo "2635"]
[BlackElo "2171"]
[Annotator "TA"]
[PlyCount "131"]
[EventDate "2024.06.01"]
[EventType "team-tourn"]
[EventCountry "FRA"]
[SourceTitle "playchess.com"]
[Source "ChessBase"]
[SourceQuality "1"]
[TimeControl "40/5400+30:1800+30"]

{[%evp 23,131,38,37,32,39,34,41,32,42,2,62,77,68,66,62,42,47,56,137,128,164,187,151,166,190,169,192,183,231,222,316,278,251,262,234,256,247,272,271,199,216,125,134,133,768,759,684,683,577,354,889,871,1406,823,29979,352,320,56,70,83,89,15,167,159,172,172,172,172,206,214,214,172,179,114,114,114,135,0,172,172,306,149,306,306,277,252,815,809,768,734,625,200,568,408,423,415,415,360,1291,1181,29961,29961,29957,29955,29971,29972,29974,29975,29975,29976]} 1. e4 {[%emt 0:00:07]} c6 {[%emt 0:00:55]} 2. d4 {[%emt 0:00:20]} d5 {[%emt 0:00:05]} 3. e5 {[%emt 0:00:16]} Bf5 {[%emt 0:00:47]} 4. Be3 {[%emt 0:01:27]} e6 {[%emt 0:01:16]} 5. Nd2 {[%emt 0:01:18]} Nd7 {[%emt 0:02:18]} 6. Ngf3 {[%emt 0:00:53] B12: Caro-Kann: Advance Variation.} h6 {[%emt 0:04:04]} 7. Nb3 {[%emt 0:02:16]} Ne7 {[%emt 0:01:33]} 8. Be2 {[%emt 0:01:28]} Qc7 {[%emt 0:12:40]} 9. O-O {[%emt 0:04:49]} g5 {[%emt 0:06:45]} 10. a4 {[%emt 0:07:16] is the legacy move (10.Ne1).} Bg7 {[%emt 0:01:32]} 11. Ne1 {[%emt 0:09:27]} O-O {[%emt 0:04:25]} 12. f4 {[%emt 0:02:19]} gxf4 $146 {[%emt 0:02:25]} ({Predecessor:} 12... f6 13. exf6 Bxf6 14. Bd3 g4 15. h3 h5 16. hxg4 hxg4 17. Be2 g3 18. Bd3 Rf7 {0-1 Wieczorek,O (2432)-Leiva Rodriguez,J (2390) Titled Tuesday intern op 2nd Febr blitz 2016 (8)}) 13. Bxf4 {[%emt 0:00:23]} (13. Rxf4 c5 $11) 13... c5 {[%emt 0:07:39]} 14. c3 {[%emt 0:05:33]} a6 {[%emt 0:10:33]} 15. Qd2 {[%emt 0:09:50]} Kh7 {[%emt 0:01:21]} 16. Nf3 {[%emt 0:01:50]} Qb6 {[%emt 0:06:02]} ({Black should play} 16... Ng6 $11) 17. Nxc5 $14 {[%emt 0:03:50]} Nxc5 {[%emt 0:00:22]} 18. dxc5 {[%emt 0:00:06]} Qxc5+ {[%emt 0:00:19]} 19. Nd4 {[%emt 0:01:03]} Be4 $1 {[%emt 0:08:42]} 20. Bd3 {[%emt 0:12:53]} Nf5 {[%emt 0:04:04]} ({Black should try} 20... Ng6 $14) 21. Rae1 $16 {[%emt 0:05:08]} Nxd4 {[%emt 0:07:22]} 22. Bxe4+ {[%emt 0:00:19]} dxe4 {[%emt 0:00:40]} 23. cxd4 {[%emt 0:00:36]} (23. Qxd4 $6 Qxd4+ 24. cxd4 Rac8 $14) 23... Qd5 {[%emt 0:03:57]} 24. Re3 $1 {[%emt 0:12:44]} Rad8 {[%emt 0:07:47]} 25. Rd1 {[%emt 0:00:42]} Rh8 {[%emt 0:01:33]} (25... f6 $142) 26. Rh3 $18 {[%emt 0:02:20]} h5 {[%emt 0:03:00]} (26... Kg8 {was called for.} 27. Rg3 (27. Bxh6 Rxh6 28. Rxh6 Bxe5 $16) 27... Kh7) 27. Rxh5+ $18 {[%emt 0:01:41]} Kg8 {[%emt 0:00:17]} 28. Rxh8+ {[%emt 0:00:51]} Kxh8 {[%emt 0:00:20]} 29. Bg5 {[%emt 0:00:50]} Rd7 {[%emt 0:00:48]} 30. Bf6 $1 {[%emt 0:09:11]} Kh7 {[%emt 0:00:36]} 31. Qf4 {[%emt 0:01:19]} Bxf6 {[%emt 0:01:21]} 32. exf6 {[%emt 0:00:10]} (32. Qxf6 $18 {And now h3 would win.} Qc4 33. d5) 32... Kg6 $16 {[%emt 0:00:31]} 33. h4 $1 {[%emt 0:01:03]} Qf5 $2 {[%emt 0:00:30][%mdl 8192]} (33... Rd8 $16 34. Rd2 e3 (34... Qf5 35. Qg3+ Kh5 36. Rf2 $18)) 34. Qg3+ $18 {[%emt 0:00:11]} Kh5 {[%emt 0:00:29]} 35. Rf1 {[%emt 0:01:30]} Qg6 {[%emt 0:00:31]} 36. Qe3 {[%emt 0:01:13]} Rd5 $2 {[%emt 0:00:29]} (36... Rd8 37. Rf4 Rg8 38. g4+ (38. Rxe4 $2 Qxg2#) (38. Qxe4 Qxe4 39. Rxe4 Rc8 $16) (38. Qe2+ Kh6 $18) 38... Kh6 (38... Kxh4 39. g5+ Kxg5 40. Qg3+ Kh6 41. Rh4+)) 37. Rf4 $18 {[%emt 0:00:27]} e5 {[%emt 0:01:02]} 38. Rxe4 {[%emt 0:01:02]} exd4 {[%emt 0:00:00]} 39. Qf3+ $2 {[%emt 0:00:31]} (39. Qf4 {mates} Rf5 40. g4+ Kxh4 41. Qxf5 Qxf5 42. gxf5+ Kg5 43. Rxd4 Kxf5 44. Rd6) 39... Kh6 $18 {[%emt 0:00:14]} 40. Re8 $2 {[%emt 0:00:38]} (40. g4 $18 {Re8 is the strong threat.} Rd8 41. Re7) 40... Qf5 $14 {[%emt 0:00:45]} 41. Qxf5 {[%emt 0:12:30]} Rxf5 {[%emt 0:03:32]} 42. Rd8 {[%emt 0:01:22]} ({Better is} 42. Re4 $1 $16) 42... Rxf6 $2 {[%emt 0:00:38]} (42... Rf4 $11 {and Black has nothing to worry.}) 43. Rxd4 $18 {[%emt 0:00:28]} a5 {[%emt 0:06:27]} 44. b4 $1 {[%emt 0:02:31]} axb4 {[%emt 0:00:38]} 45. Rxb4 {[%emt 0:00:08]} b6 {[%emt 0:00:38]} 46. Kh2 {[%emt 0:00:08]} Rc6 {[%emt 0:00:47]} 47. Kg3 {[%emt 0:00:30]} Kh5 {[%emt 0:09:02]} 48. Rf4 {[%emt 0:03:47]} (48. Kh3 $18) 48... Kg6 $16 {[%emt 0:02:33]} 49. Rg4+ {[%emt 0:05:26]} Kh6 {[%emt 0:00:53]} 50. Rb4 {[%emt 0:00:24]} Kh5 $1 {[%emt 0:00:45]} 51. Kh3 {[%emt 0:00:09]} f5 {[%emt 0:05:22]} (51... Kh6 $142 52. Kg4 Kg6) 52. g3 $18 {[%emt 0:00:34]} Kh6 $2 {[%emt 0:00:41] [#]} (52... Kg6 $16 {might work better.} 53. Kg2 Kf6) 53. Kg2 $1 $18 {[%emt 0:00:13]} Kg6 {[%emt 0:00:50]} 54. Kf3 {[%emt 0:00:08]} Kh6 $2 {[%emt 0:02:19]} (54... Kg7 55. Kf4 Kf6) 55. Kf4 $18 {[%emt 0:00:47]} Kg6 {[%emt 0:00:05]} 56. Ke5 {[%emt 0:00:22]} Rc5+ {[%emt 0:00:47]} 57. Kd4 $2 {[%emt 0:03:46]} (57. Kd6 Rc3 58. Rxb6) 57... Rc6 $2 {[%emt 0:00:23]} (57... Kh5 {is a better chance.} 58. Ke3 (58. Rxb6 Ra5 $11) 58... Re5+ 59. Kf4 Ra5) 58. Rc4 {[%emt 0:00:39]} Re6 {[%emt 0:01:34]} 59. Kd5 {[%emt 0:00:37]} Re3 {[%emt 0:00:04] [#]} 60. g4 $1 {[%emt 0:00:06]} fxg4 $2 {[%emt 0:00:25]} (60... Rd3+ 61. Kc6 fxg4 62. Rxg4+ Kh5) 61. Rxg4+ $18 {[%emt 0:00:05]} Kh5 {[%emt 0:00:25]} 62. Rb4 {[%emt 0:00:12]} Rc3 {[%emt 0:00:29]} 63. Rxb6 {[%emt 0:02:07]} Kxh4 {[%emt 0:00:08]} 64. a5 {[%emt 0:00:07]} Ra3 {[%emt 0:00:11]} 65. a6 {[%emt 0:00:10]} Rc3 {[%emt 0:00:57]} 66. Rb4+ {[%emt 0:01:00]} 1-0

[Event "French Top 16-A 2024"]
[Site "Chartres"]
[Date "2024.06.03"]
[Round "5.12"]
[White "Sohier, Julien"]
[Black "Loiseau, Quentin"]
[Result "0-1"]
[ECO "B54"]
[WhiteElo "2214"]
[BlackElo "2411"]
[Annotator "RC"]
[PlyCount "40"]
[EventDate "2024.06.01"]
[EventType "team-tourn"]
[EventCountry "FRA"]
[SourceTitle "playchess.com"]
[Source "ChessBase"]
[SourceQuality "1"]
[TimeControl "40/5400+30:1800+30"]

1. e4 {[%emt 0:00:02]} c5 {[%emt 0:00:18]} 2. Nc3 {[%emt 0:00:10]} d6 {[%emt 0:00:37]} 3. Nf3 {[%emt 0:01:04]} a6 {[%emt 0:05:15]} 4. d4 {[%emt 0:01:42]} cxd4 {[%emt 0:00:20]} 5. Nxd4 {[%emt 0:00:03]} e6 {[%emt 0:01:55]} 6. Be2 {[%emt 0:05:44]} b5 {[%emt 0:02:21]} 7. f4 {[%emt 0:04:13]} b4 {[%emt 0:05:44]} 8. Na4 {[%emt 0:01:32]} Bb7 {[%emt 0:01:15]} 9. Bf3 {[%emt 0:09:03]} e5 {[%emt 0:20:38]} 10. Nf5 {[%emt 0:08:19]} g6 {[%emt 0:04:29]} 11. Ne3 {[%emt 0:11:12]} Nd7 {[%emt 0:03:36]} 12. Nc4 {[%emt 0:08:04]} Qc7 {[%emt 0:04:12]} 13. b3 {[%emt 0:04:39]} Ngf6 {[%emt 0:01:05]} 14. Qd3 {[%emt 0:05:44]} Bc6 {[%emt 0:05:42]} 15. Bd2 {[%emt 0:15:05]} Bxa4 {[%emt 0:00:56]} 16. bxa4 {[%emt 0:00:05]} Rc8 {[%emt 0:01:11]} 17. Be2 {[%emt 0:07:47]} Nc5 {[%emt 0:05:46]} 18. Qf3 {[%emt 0:01:11]} Ncxe4 {[%emt 0:04:19]} 19. Bxb4 {[%emt 0:02:30]} exf4 {[%emt 0:08:31]} 20. Qxf4 {[%emt 0:04:13]} d5 {[%emt 0:00:36]} 0-1

[Event "French Top 16-A 2024"]
[Site "Chartres"]
[Date "2024.06.03"]
[Round "5.13"]
[White "Wirig, Anthony"]
[Black "De Balmann, Marc"]
[Result "1/2-1/2"]
[ECO "E60"]
[WhiteElo "2453"]
[BlackElo "2151"]
[Annotator "TA"]
[PlyCount "65"]
[EventDate "2024.06.01"]
[EventType "team-tourn"]
[EventCountry "FRA"]
[SourceTitle "playchess.com"]
[Source "ChessBase"]
[SourceQuality "1"]
[TimeControl "40/5400+30:1800+30"]

{[%evp 16,65,20,34,38,0,0,0,20,15,20,3,24,0,0,-35,-22,-14,-17,-12,0,0,0,0,0,-39,-37,-43,-43,-33,-16,-18,-5,-64,-17,-31,-30,-38,-35,-76,-72,-110,-104,-119,-107,-120,0,-112,0,-100,0,-106]} 1. Nf3 {[%emt 0:00:17]} Nf6 {[%emt 0:00:04]} 2. g3 {[%emt 0:00:10]} g6 {[%emt 0:00:05]} 3. b3 {[%emt 0:00:31]} Bg7 {[%emt 0:00:10]} 4. Bb2 {[%emt 0:00:06]} O-O {[%emt 0:00:08]} 5. Bg2 {[%emt 0:00:52]} d6 {[%emt 0:02:31]} 6. d4 {[%emt 0:00:52]} Nbd7 {[%emt 0:02:55]} 7. O-O {[%emt 0:05:32]} c6 {[%emt 0:02:47]} 8. c4 {[%emt 0:03:50]} Re8 {[%emt 0:06:57]} 9. Qc2 {[%emt 0:00:48]} e5 {[%emt 0:06:59]} 10. e4 {[%emt 0:03:08]} exd4 {[%emt 0:06:13]} 11. Nxd4 {[%emt 0:01:48]} Nc5 {[%emt 0:00:08]} 12. Nd2 {[%emt 0:02:40]} a5 {[%emt 0:04:40]} 13. Rae1 {[%emt 0:19:25]} Qb6 {[%emt 0:08:07]} 14. h3 {[%emt 0:10:25]} Nfd7 {[%emt 0:14:48][%cal Bf6d7,Bd7e5,Be5d3][%mdl 32]} 15. Ba1 {[%emt 0:03:01]} a4 {[%emt 0:11:56]} 16. Ne2 {[%emt 0:02:00]} axb3 {[%emt 0:04:05]} 17. axb3 {[%emt 0:00:56]} Bxa1 {[%emt 0:02:37]} 18. Rxa1 {[%emt 0:00:13]} Rxa1 {[%emt 0:00:03]} 19. Rxa1 {[%emt 0:00:07]} Ne5 {[%emt 0:00:14]} 20. Qa2 {[%emt 0:12:57]} Ned3 {[%emt 0:03:26][%cal Od3f2] [#] Hoping for ...Nxf2!} 21. Qa5 {[%emt 0:02:26]} Qxa5 {[%emt 0:00:41]} 22. Rxa5 {[%emt 0:00:02]} Kf8 {[%emt 0:06:54]} 23. Nc3 $1 {[%emt 0:09:31]} Ke7 {[%emt 0:00:46]} 24. f4 {[%emt 0:01:17]} (24. Na2 $11) 24... f6 {[%emt 0:00:40]} (24... Kd8 $15) 25. Bf1 {[%emt 0:00:59]} Nb4 {[%emt 0:01:40]} 26. h4 {[%emt 0:03:36]} Kd8 {[%emt 0:01:17]} 27. Bg2 {[%emt 0:02:43]} Kc7 {[%emt 0:00:13]} 28. Ra1 {[%emt 0:00:11]} Bg4 {[%emt 0:01:21]} 29. Kf2 {[%emt 0:01:54]} Nc2 {[%emt 0:01:51]} 30. Ra2 {[%emt 0:01:01]} Nb4 {[%emt 0:00:13]} 31. Ra1 {[%emt 0:01:34]} Nc2 {[%emt 0:00:05] Prevents Ra3} 32. Ra2 {[%emt 0:01:00]} Nb4 {[%emt 0:00:05]} 33. Ra1 {[%emt 0:01:03] Weighted Error Value: White=0.15 (very precise) /Black=0.23 (precise) .  Mistake:       	White=1     	Black=1      Inaccurate:     	White=5     	---        OK:         	White=5     	Black=9      Best:        	White=1     	---        Strong:       	White=1     	---} 1/2-1/2